fUST/lending_fUST_20250727
["ID","MTS","AMOUNT","RATE_DAILY","PERIOD"]
[375150872,1753549838896,-460.0,0.00019235,2]
[375150873,1753549838905,-460.0,0.00019235,2]
[375150874,1753549838915,-460.0,0.00019235,2]
[375150875,1753549838925,-300.05080514,0.00019235,2]
[375150876,1753549838935,-460.0,0.00019235,2]
[375150877,1753549838944,-460.0,0.00019235,2]
[375150878,1753549838955,-460.0,0.00019235,2]
[375150879,1753549838965,-460.0,0.00019235,2]
[375150880,1753549838975,-151.0,0.00019337,2]
[375150881,1753549838984,-151.0,0.00019337,2]
[375150882,1753549838993,-169.0,0.00019337,2]
[375150883,1753549839004,-460.0,0.0001934,2]
[375150884,1753549839014,-460.0,0.0001934,2]
[375150885,1753549839024,-464.65604806,0.0001934,2]
[375150886,1753549839034,-460.0,0.0001934,2]
[375150887,1753549839044,-460.0,0.0001934,2]
[375150888,1753549839053,-202.97774291,0.0001934,2]
[375150889,1753549839063,-369.62656306,0.0001934,2]
[375150890,1753549839073,-460.0,0.0001934,2]
[375150891,1753549839083,-563.48650561,0.0001934,2]
[375150892,1753549839092,-475.41915853,0.0001934,2]
[375150893,1753549839102,-460.0,0.0001934,2]
[375150894,1753549839111,-463.58863773,0.0001934,2]
[375150895,1753549839122,-460.0,0.0001934,2]
[375150896,1753549839131,-460.0,0.0001934,2]
[375150897,1753549839142,-380.39555208,0.0001934,2]
[375150898,1753549839152,-460.0,0.0001934,2]
[375150899,1753549839162,-460.0,0.0001934,2]
[375150900,1753549839171,-460.0,0.0001934,2]
[375150901,1753549839281,-460.0,0.0001934,2]
[375150902,1753549839296,-460.0,0.0001934,2]
[375150903,1753549839306,-460.0,0.0001934,2]
[375150904,1753549839315,-460.0,0.0001934,2]
[375150905,1753549839325,-460.0,0.0001934,2]
[375150906,1753549839335,-458.33004213,0.0001934,2]
[375150907,1753549839344,-460.0,0.0001934,2]
[375150908,1753549839354,-460.0,0.0001934,2]
[375150909,1753549839363,-460.0,0.0001934,2]
[375150910,1753549839374,-473.31418441,0.0001934,2]
[375150911,1753549839383,-460.0,0.0001934,2]
[375150912,1753549839393,-470.20608457,0.0001934,2]
[375150913,1753549839403,-460.0,0.0001934,2]
[375150914,1753549839413,-460.0,0.0001934,2]
[375150915,1753549839422,-460.0,0.0001934,2]
[375150916,1753549839441,-460.0,0.0001934,2]
[375150917,1753549839453,-460.70338835,0.0001934,2]
[375150918,1753549839463,-460.0,0.0001934,2]
[375150919,1753549839474,-460.0,0.0001934,2]
[375150920,1753549839485,-460.0,0.0001934,2]
[375150922,1753549839495,-460.0,0.0001934,2]
[375150923,1753549839506,-460.75328239,0.0001934,2]
[375150924,1753549839519,-460.0,0.0001934,2]
[375150925,1753549839532,-460.0,0.0001934,2]
[375150926,1753549839542,-460.0,0.0001934,2]
[375150927,1753549839552,-460.0,0.0001934,2]
[375150928,1753549839563,-424.87747838,0.0001934,2]
[375150929,1753549839572,-460.0,0.0001934,2]
[375150930,1753549839585,-385.51347144,0.0001934,2]
[375150931,1753549839595,-460.0,0.0001934,2]
[375150932,1753549839605,-460.0,0.0001934,2]
[375150933,1753549839615,-460.0,0.0001934,2]
[375150934,1753549839626,-460.0,0.0001934,2]
[375150935,1753549839636,-212.81387329,0.0001934,2]
[375150936,1753549839646,-460.0,0.0001934,2]
[375150937,1753549839656,-460.0,0.0001934,2]
[375150938,1753549839666,-460.0,0.0001934,2]
[375150939,1753549839676,-460.0,0.0001934,2]
[375150940,1753549839686,-364.81999999,0.0001934,2]
[375150941,1753549839696,-460.0,0.0001934,2]
[375150943,1753549839706,-460.0,0.0001934,2]
[375150944,1753549839715,-460.0,0.0001934,2]
[375150945,1753549839726,-455.0,0.0001934,2]
[375150947,1753549839736,-460.0,0.0001934,2]
[375150948,1753549839746,-461.3665911,0.0001934,2]
[375150949,1753549839755,-460.0,0.0001934,2]
[375150950,1753549839765,-460.0,0.0001934,2]
[375150951,1753549839777,-460.0,0.0001934,2]
[375150952,1753549839788,-460.0,0.0001934,2]
[375150953,1753549839798,-460.9107218,0.0001934,2]
[375150954,1753549839808,-460.0,0.0001934,2]
[375150956,1753549839818,-460.0,0.0001934,2]
[375150958,1753549839828,-460.0,0.0001934,2]
[375150960,1753549839838,-196.0227969,0.0001934,2]
[375150962,1753549839848,-529.68625105,0.0001934,2]
[375150964,1753549839857,-460.0,0.0001934,2]
[375150966,1753549839867,-460.0,0.0001934,2]
[375150968,1753549839877,-460.0,0.0001934,2]
[375150970,1753549839887,-460.0,0.0001934,2]
[375150972,1753549839897,-460.0,0.0001934,2]
[375150974,1753549839907,-460.0,0.0001934,2]
[375150976,1753549839916,-460.0,0.0001934,2]
[375150978,1753549839926,-460.0,0.0001934,2]
[375150980,1753549839935,-1960.74,0.0001934,2]
[375150982,1753549839945,-460.0,0.0001934,2]
[375150984,1753549839955,-460.0,0.0001934,2]
[375150986,1753549839965,-460.0,0.0001934,2]
[375150988,1753549839974,-460.0,0.0001934,2]
[375150990,1753549839984,-460.0,0.0001934,2]
[375150992,1753549839993,-460.0,0.0001934,2]
[375150995,1753549840003,-460.0,0.0001934,2]
[375150997,1753549840013,-461.03584063,0.0001934,2]
[375150999,1753549840022,-462.01420569,0.0001934,2]
[375151001,1753549840032,-603.93446867,0.0001934,2]
[375151002,1753549840041,-2021.29,0.0001934,2]
[375151004,1753549840052,-460.0,0.0001934,2]
[375151006,1753549840062,-460.0,0.0001934,2]
[375151008,1753549840072,-460.0,0.0001934,2]
[375151010,1753549840081,-417.52800515,0.0001934,2]
[375151012,1753549840091,-460.0,0.0001934,2]
[375151014,1753549840100,-460.0,0.0001934,2]
[375151016,1753549840110,-462.30774263,0.0001934,2]
[375151018,1753549840119,-460.0,0.0001934,2]
[375151020,1753549840130,-460.0,0.0001934,2]
[375151022,1753549840140,-460.0,0.0001934,2]
[375151024,1753549840149,-460.0,0.0001934,2]
[375151026,1753549840159,-460.0,0.0001934,2]
[375151028,1753549840168,-460.91715273,0.0001934,2]
[375151030,1753549840178,-460.0,0.0001934,2]
[375151032,1753549840189,-500.0,0.0001934,2]
[375151034,1753549840199,-460.0,0.0001934,2]
[375151036,1753549840209,-460.0,0.0001934,2]
[375151038,1753549840219,-460.0,0.0001934,2]
[375151040,1753549840229,-274.18338261,0.0001934,2]
[375151042,1753549840239,-460.0,0.0001934,2]
[375151044,1753549840248,-460.0,0.0001934,2]
[375151046,1753549840258,-460.0,0.0001934,2]
[375151048,1753549840267,-460.0,0.0001934,2]
[375151050,1753549840277,-509.22,0.0001934,2]
[375151052,1753549840287,-460.0,0.0001934,2]
[375151054,1753549840297,-460.0,0.0001934,2]
[375151056,1753549840307,-460.0,0.0001934,2]
[375151058,1753549840317,-497.00075972,0.0001934,2]
[375151060,1753549840326,-460.0,0.0001934,2]
[375151062,1753549840336,-460.0,0.0001934,2]
[375151063,1753549840345,-460.0,0.0001934,2]
[375151064,1753549840356,-986.28,0.0001934,2]
[375151065,1753549840365,-787.04,0.0001934,2]
[375151066,1753549840375,-460.0,0.0001934,2]
[375151067,1753549840384,-460.0,0.0001934,2]
[375151068,1753549840394,-460.0,0.0001934,2]
[375151069,1753549840405,-460.0,0.0001934,2]
[375151070,1753549840414,-460.0,0.0001934,2]
[375151071,1753549840423,-460.0,0.0001934,2]
[375151072,1753549840433,-460.0,0.0001934,2]
[375151074,1753549840443,-460.0,0.0001934,2]
[375151075,1753549840453,-460.0,0.0001934,2]
[375151077,1753549840463,-465.44983899,0.0001934,2]
[375151078,1753549840472,-460.0,0.0001934,2]
[375151079,1753549840482,-460.0,0.0001934,2]
[375151080,1753549840492,-460.33238742,0.0001934,2]
[375151081,1753549840502,-460.0,0.0001934,2]
[375151082,1753549840511,-400.0,0.0001934,2]
[375151083,1753549840521,-460.0,0.0001934,2]
[375151084,1753549840533,-460.0,0.0001934,2]
[375151085,1753549840544,-460.0,0.0001934,2]
[375151086,1753549840553,-460.0,0.0001934,2]
[375151087,1753549840564,-460.0,0.0001934,2]
[375151088,1753549840574,-460.0,0.0001934,2]
[375151089,1753549840584,-460.0,0.0001934,2]
[375151090,1753549840593,-478.42,0.0001934,2]
[375151091,1753549840604,-460.0,0.0001934,2]
[375151092,1753549840614,-460.0,0.0001934,2]
[375151093,1753549840624,-460.0,0.0001934,2]
[375151094,1753549840633,-460.0,0.0001934,2]
[375151095,1753549840643,-460.0,0.0001934,2]
[375151096,1753549840653,-460.0,0.0001934,2]
[375151097,1753549840662,-460.0,0.0001934,2]
[375151098,1753549840672,-477.02,0.0001934,2]
[375151099,1753549840681,-460.0,0.0001934,2]
[375151100,1753549840698,-460.0,0.0001934,2]
[375151101,1753549840708,-446.49327071,0.0001934,2]
[375151102,1753549840718,-460.0,0.0001934,2]
[375151103,1753549840728,-460.0,0.0001934,2]
[375151104,1753549840738,-500.0,0.00019341,2]
[375151105,1753549840747,-500.0,0.00019341,2]
[375151106,1753549840757,-502.64339329,0.00019373,2]
[375151107,1753549840767,-218.73458381,0.00019373,2]
[375151108,1753549840777,-280.65641991,0.00019373,2]
[375151109,1753549840786,-500.0,0.00019373,2]
[375151110,1753549840795,-500.0,0.00019373,2]
[375151111,1753549840805,-500.0,0.00019373,2]
[375151112,1753549840815,-501.1456295,0.00019373,2]
[375151113,1753549840824,-460.0,0.00019452,2]
[375151114,1753549840835,-460.0,0.00019452,2]
[375151115,1753549840845,-460.0,0.00019509,2]
[375151116,1753549840855,-460.0,0.00019509,2]
[375151117,1753549840865,-1339.07,0.00019509,2]
[375151118,1753549840875,-460.0,0.00019509,2]
[375151119,1753549840885,-469.67,0.00019509,2]
[375151120,1753549840894,-460.0,0.00019509,2]
[375151121,1753549840904,-460.0,0.00019509,2]
[375151122,1753549840914,-460.0,0.00019509,2]
[375151123,1753549840923,-460.0,0.00019509,2]
[375151124,1753549840933,-460.0,0.00019509,2]
[375151125,1753549840942,-460.0,0.00019509,2]
[375151126,1753549840951,-460.0,0.00019509,2]
[375151127,1753549840961,-460.0,0.00019614,2]
[375151128,1753549840970,-460.0,0.00019614,2]
[375151129,1753549840980,-460.0,0.00019614,2]
[375151130,1753549840989,-460.0,0.00019614,2]
[375151131,1753549840999,-560.67393125,0.00019614,2]
[375151132,1753549841009,-460.0,0.00019614,2]
[375151133,1753549841018,-460.0,0.00019614,2]
[375151134,1753549841028,-460.0,0.00019614,2]
[375151135,1753549841037,-460.0,0.00019614,2]
[375151136,1753549841047,-460.0,0.00019614,2]
[375151137,1753549841056,-460.0,0.00019614,2]
[375151138,1753549841066,-460.0,0.00019614,2]
[375151139,1753549841078,-498.02,0.00019614,2]
[375151140,1753549841088,-460.0,0.00019614,2]
[375151141,1753549841099,-460.0,0.00019614,2]
[375151142,1753549841110,-1960.74,0.00019614,2]
[375151143,1753549841120,-460.0,0.00019614,2]
[375151144,1753549841129,-550.92734134,0.00019614,2]
[375151145,1753549841139,-460.0,0.00019614,2]
[375151146,1753549841148,-460.0,0.00019614,2]
[375151147,1753549841157,-2021.29,0.00019614,2]
[375151148,1753549841166,-460.0,0.00019614,2]
[375151149,1753549841176,-460.0,0.00019614,2]
[375151150,1753549841185,-460.0,0.00019614,2]
[375151151,1753549841195,-460.0,0.00019614,2]
[375151152,1753549841205,-460.0,0.00019614,2]
[375151153,1753549841216,-460.0,0.00019614,2]
[375151154,1753549841228,-460.0,0.00019614,2]
[375151155,1753549841238,-460.0,0.00019614,2]
[375151156,1753549841249,-460.0,0.00019614,2]
[375151157,1753549841259,-986.28,0.00019614,2]
[375151158,1753549841270,-787.04,0.00019614,2]
[375151159,1753549841280,-460.0,0.00019614,2]
[375151160,1753549841290,-460.0,0.00019614,2]
[375151161,1753549841300,-460.0,0.00019614,2]
[375151162,1753549841310,-460.0,0.00019614,2]
[375151163,1753549841320,-460.0,0.00019614,2]
[375151164,1753549841330,-460.0,0.00019614,2]
[375151165,1753549841339,-460.0,0.00019614,2]
[375151166,1753549841349,-460.0,0.00019614,2]
[375151167,1753549841359,-460.0,0.00019614,2]
[375151168,1753549841368,-504.36,0.00019614,2]
[375151169,1753549841378,-460.0,0.00019614,2]
[375151170,1753549841388,-460.0,0.00019614,2]
[375151171,1753549841397,-478.42,0.00019614,2]
[375151172,1753549841406,-460.0,0.00019614,2]
[375151173,1753549841416,-460.0,0.00019614,2]
[375151174,1753549841426,-477.02,0.00019614,2]
[375151175,1753549841439,-460.0,0.00019614,2]
[375151176,1753549841450,-460.0,0.00019614,2]
[375151177,1753549841459,-156.16,0.00019648,2]
[375151178,1753549841469,-460.0,0.00019726,2]
[375151179,1753549841479,-460.0,0.00019726,2]
[375151180,1753549841488,-460.0,0.00019783,2]
[375151181,1753549841497,-1339.07,0.00019783,2]
[375151182,1753549841507,-460.0,0.00019783,2]
[375151183,1753549841516,-469.67,0.00019783,2]
[375151184,1753549841526,-460.0,0.00019783,2]
[375151185,1753549841540,-460.0,0.00019783,2]
[375151186,1753549841550,-460.0,0.00019783,2]
[375151187,1753549841559,-460.0,0.00019783,2]
[375151188,1753549841570,-460.0,0.00019783,2]
[375151189,1753549841579,-460.0,0.00019783,2]
[375151190,1753549841589,-460.0,0.00019783,2]
[375151191,1753549841599,-460.0,0.00019888,2]
[375151192,1753549841610,-385.70140025,0.00019888,2]
[375151193,1753549841620,-460.0,0.00019888,2]
[375151194,1753549841630,-460.0,0.00019888,2]
[375151195,1753549841640,-460.0,0.00019888,2]
[375151196,1753549841649,-460.0,0.00019888,2]
[375151197,1753549841659,-460.0,0.00019888,2]
[375151198,1753549841669,-1960.74,0.00019888,2]
[375151199,1753549841678,-460.0,0.00019888,2]
[375151200,1753549841687,-576.80878478,0.00019888,2]
[375151201,1753549841697,-460.0,0.00019888,2]
[375151202,1753549841706,-2021.29,0.00019888,2]
[375151203,1753549841718,-460.0,0.00019888,2]
[375151204,1753549841728,-460.0,0.00019888,2]
[375151205,1753549841738,-460.0,0.00019888,2]
[375151206,1753549841748,-460.0,0.00019888,2]
[375151207,1753549841757,-460.0,0.00019888,2]
[375151208,1753549841767,-460.0,0.00019888,2]
[375151209,1753549841776,-460.0,0.00019888,2]
[375151210,1753549841786,-986.28,0.00019888,2]
[375151211,1753549841796,-787.04,0.00019888,2]
[375151212,1753549841806,-460.0,0.00019888,2]
[375151213,1753549841815,-460.0,0.00019888,2]
[375151214,1753549841825,-460.0,0.00019888,2]
[375151215,1753549841835,-460.0,0.00019888,2]
[375151216,1753549841845,-460.0,0.00019888,2]
[375151217,1753549841857,-460.0,0.00019888,2]
[375151218,1753549841872,-460.0,0.00019888,2]
[375151219,1753549841882,-460.0,0.00019888,2]
[375151220,1753549841891,-460.0,0.00019888,2]
[375151221,1753549841901,-460.0,0.00019888,2]
[375151222,1753549841911,-478.42,0.00019888,2]
[375151223,1753549841921,-460.0,0.00019888,2]
[375151224,1753549841931,-162.08,0.00019888,2]
[375151225,1753549841940,-460.0,0.00019888,2]
[375151226,1753549841950,-477.02,0.00019888,2]
[375151227,1753549841960,-460.0,0.00019888,2]
[375151228,1753549841970,-502.39595311,0.00019921,2]
[375151229,1753549841979,-218.33169195,0.00019921,2]
[375151230,1753549841990,-500.0,0.00019985,2]
[375151231,1753549841999,-9471.16620057,0.0001999,2]
[375151232,1753549842010,-538.47238852,0.0002,2]
[375151233,1753549842019,-460.0,0.0002,2]
[375151234,1753549842028,-469.2747703,0.0002,4]
[375151235,1753549842038,-160.0,0.00020011,2]
[375151236,1753549842047,-1339.07,0.00020057,2]
[375151237,1753549842057,-460.0,0.00020057,2]
[375151238,1753549842067,-469.67,0.00020057,2]
[375151239,1753549842076,-460.0,0.00020057,2]
[375151240,1753549842086,-460.0,0.00020057,2]
[375151241,1753549842095,-460.0,0.00020057,2]
[375151242,1753549842105,-460.0,0.00020057,2]
[375151243,1753549842114,-460.0,0.00020057,2]
[375151244,1753549842124,-460.0,0.00020057,2]
[375151245,1753549842133,-460.0,0.00020057,2]
[375151246,1753549842143,-460.0,0.00020162,2]
[375151247,1753549842152,-460.0,0.00020162,2]
[375151248,1753549842162,-460.0,0.00020162,2]
[375151249,1753549842171,-460.0,0.00020162,2]
[375151250,1753549842181,-460.0,0.00020162,2]
[375151251,1753549842302,-460.0,0.00020162,2]
[375151252,1753549842311,-1960.74,0.00020162,2]
[375151253,1753549842322,-460.0,0.00020162,2]
[375151254,1753549842332,-460.0,0.00020162,2]
[375151255,1753549842341,-2021.29,0.00020162,2]
[375151256,1753549842350,-460.0,0.00020162,2]
[375151257,1753549842359,-460.0,0.00020162,2]
[375151258,1753549842368,-460.0,0.00020162,2]
[375151259,1753549842377,-460.0,0.00020162,2]
[375151260,1753549842386,-460.0,0.00020162,2]
[375151261,1753549842395,-460.0,0.00020162,2]
[375151262,1753549842407,-986.28,0.00020162,2]
[375151263,1753549842418,-787.04,0.00020162,2]
[375151264,1753549842427,-460.0,0.00020162,2]
[375151265,1753549842436,-460.0,0.00020162,2]
[375151266,1753549842445,-460.0,0.00020162,2]
[375151267,1753549842455,-166.26388432,0.00020162,2]
[375151268,1753549842466,-552.80743946,0.00020162,2]
[375151269,1753549842475,-460.0,0.00020162,2]
[375151270,1753549842484,-460.0,0.00020162,2]
[375151271,1753549842494,-606.7823924,0.00020162,2]
[375151272,1753549842504,-460.0,0.00020162,2]
[375151273,1753549842513,-460.0,0.00020162,2]
[375151274,1753549842522,-478.42,0.00020162,2]
[375151275,1753549842534,-460.0,0.00020162,2]
[375151276,1753549842543,-460.0,0.00020162,2]
[375151277,1753549842552,-477.02,0.00020162,2]
[375151278,1753549842562,-460.0,0.00020162,2]
[375151279,1753549842571,-460.0,0.00020273,2]
[375151280,1753549842580,-1339.07,0.00020331,2]
[375151282,1753549842591,-460.0,0.00020331,2]
[375151283,1753549842601,-469.67,0.00020331,2]
[375151284,1753549842611,-460.0,0.00020331,2]
[375151285,1753549842621,-460.0,0.00020331,2]
[375151286,1753549842631,-460.0,0.00020331,2]
[375151287,1753549842640,-441.56878748,0.00020331,2]
[375151288,1753549842650,-460.0,0.00020331,2]
[375151289,1753549842659,-460.0,0.00020331,2]
[375151290,1753549842668,-565.61499611,0.00020331,2]
[375151291,1753549842677,-460.0,0.00020436,2]
[375151292,1753549842686,-460.0,0.00020436,2]
[375151293,1753549842697,-460.0,0.00020436,2]
[375151294,1753549842706,-460.0,0.00020436,2]
[375151295,1753549842715,-460.0,0.00020436,2]
[375151296,1753549842725,-460.0,0.00020436,2]
[375151297,1753549842734,-1960.74,0.00020436,2]
[375151298,1753549842743,-460.0,0.00020436,2]
[375151299,1753549842753,-460.0,0.00020436,2]
[375151300,1753549842762,-2021.29,0.00020436,2]
[375151301,1753549842772,-460.0,0.00020436,2]
[375151302,1753549842781,-460.0,0.00020436,2]
[375151303,1753549842790,-460.0,0.00020436,2]
[375151304,1753549842800,-460.0,0.00020436,2]
[375151305,1753549842808,-460.0,0.00020436,2]
[375151306,1753549842819,-460.0,0.00020436,2]
[375151307,1753549842828,-986.28,0.00020436,2]
[375151308,1753549842837,-787.04,0.00020436,2]
[375151309,1753549842846,-460.0,0.00020436,2]
[375151310,1753549842855,-460.0,0.00020436,2]
[375151311,1753549842865,-460.0,0.00020436,2]
[375151312,1753549842874,-389.07,0.00020436,2]
[375151313,1753549842883,-460.0,0.00020436,2]
[375151314,1753549842893,-460.0,0.00020436,2]
[375151315,1753549842902,-460.0,0.00020436,2]
[375151316,1753549842911,-478.42,0.00020436,2]
[375151317,1753549842921,-460.0,0.00020436,2]
[375151318,1753549842930,-460.0,0.00020436,2]
[375151319,1753549842939,-477.02,0.00020436,2]
[375151320,1753549842948,-460.0,0.00020436,2]
[375151321,1753549842957,-556.16,0.00020492,3]
[375151322,1753549842967,-460.0,0.00020547,2]
[375151323,1753549842976,-260.0,0.00020559,2]
[375151324,1753549842985,-1339.07,0.00020605,2]
[375151325,1753549842993,-460.0,0.00020605,2]
[375151326,1753549843002,-469.67,0.00020605,2]
[375151327,1753549843011,-340.5862972,0.00020605,2]
[375151328,1753549843021,-460.0,0.00020605,2]
[375151329,1753549843030,-460.0,0.00020605,2]
[375151330,1753549843039,-460.0,0.00020605,2]
[375151331,1753549843049,-460.0,0.00020605,2]
[375151332,1753549843058,-171.84769878,0.0002061,2]
[375151333,1753549843067,-500.0,0.00020669,2]
[375151334,1753549843076,-500.0,0.00020669,2]
[375151335,1753549843085,-500.0,0.00020669,2]
[375151336,1753549843094,-500.0,0.00020669,2]
[375151338,1753549843104,-500.0,0.00020669,2]
[375151340,1753549843113,-420.73,0.0002069,2]
[375151342,1753549843122,-503.76840278,0.000207,2]
[375151344,1753549843130,-540.72,0.0002071,2]
[375151346,1753549843140,-524.83339064,0.0002071,2]
[375151348,1753549843149,-460.0,0.0002071,2]
[375151350,1753549843158,-460.0,0.0002071,2]
[375151352,1753549843167,-460.0,0.0002071,2]
[375151354,1753549843176,-1960.74,0.0002071,2]
[375151355,1753549843185,-460.0,0.0002071,2]
[375151356,1753549843194,-460.0,0.0002071,2]
[375151357,1753549843203,-2021.29,0.0002071,2]
[375151358,1753549843212,-460.0,0.0002071,2]
[375151359,1753549843221,-460.0,0.0002071,2]
[375151360,1753549843230,-460.0,0.0002071,2]
[375151361,1753549843239,-460.0,0.0002071,2]
[375151362,1753549843248,-460.0,0.0002071,2]
[375151363,1753549843258,-460.0,0.0002071,2]
[375151364,1753549843267,-986.28,0.0002071,2]
[375151365,1753549843277,-787.04,0.0002071,2]
[375151366,1753549843286,-460.0,0.0002071,2]
[375151367,1753549843295,-460.0,0.0002071,2]
[375151368,1753549843304,-460.0,0.0002071,2]
[375151369,1753549843313,-460.0,0.0002071,2]
[375151370,1753549843323,-460.0,0.0002071,2]
[375151371,1753549843332,-460.0,0.0002071,2]
[375151372,1753549843342,-478.42,0.0002071,2]
[375151373,1753549843351,-607.38,0.0002071,2]
[375151374,1753549843361,-460.0,0.0002071,2]
[375151375,1753549843370,-460.0,0.0002071,2]
[375151376,1753549843380,-477.02,0.0002071,2]
[375151377,1753549843390,-500.0,0.00020721,2]
[375151378,1753549843399,-500.0,0.00020721,2]
[375151379,1753549843410,-500.0,0.00020721,2]
[375151380,1753549843420,-500.0,0.00020721,2]
[375151381,1753549843429,-840.57612966,0.00020735,2]
[375151382,1753549843439,-214.8008262,0.00020735,2]
[375151383,1753549843448,-12629.83479014,0.00020735,2]
[375151384,1753549843458,-231.25662632,0.00020735,2]
[375151385,1753549843467,-420.0,0.00020743,2]
[375151386,1753549843477,-460.0,0.00020821,2]
[375151387,1753549843486,-1680.0,0.00020844,2]
[375151388,1753549843496,-416.0,0.00020852,2]
[375151389,1753549843506,-1339.07,0.00020879,2]
[375151390,1753549843516,-460.0,0.00020879,2]
[375151391,1753549843525,-469.67,0.00020879,2]
[375151392,1753549843540,-460.0,0.00020879,2]
[375151393,1753549843549,-460.0,0.00020879,2]
[375151394,1753549843559,-460.0,0.00020879,2]
[375151395,1753549843570,-498.14,0.00020879,2]
[375151396,1753549843579,-500.0,0.00020975,2]
[375151397,1753549843588,-307.62682723,0.00020984,2]
[375151398,1753549843598,-460.0,0.00020984,2]
[375151399,1753549843607,-460.0,0.00020984,2]
[375151400,1753549843618,-1960.74,0.00020984,2]
[375151401,1753549843628,-460.0,0.00020984,2]
[375151402,1753549843638,-460.0,0.00020984,2]
[375151403,1753549843648,-2021.29,0.00020984,2]
[375151404,1753549843657,-460.0,0.00020984,2]
[375151405,1753549843666,-460.0,0.00020984,2]
[375151406,1753549843676,-460.0,0.00020984,2]
[375151407,1753549843686,-460.0,0.00020984,2]
[375151408,1753549843695,-460.0,0.00020984,2]
[375151409,1753549843704,-460.0,0.00020984,2]
[375151410,1753549843714,-986.28,0.00020984,2]
[375151411,1753549843724,-787.04,0.00020984,2]
[375151412,1753549843733,-460.0,0.00020984,2]
[375151413,1753549843743,-460.0,0.00020984,2]
[375151414,1753549843753,-277.24,0.00020984,2]
[375151415,1753549843762,-460.0,0.00020984,2]
[375151416,1753549843772,-460.0,0.00020984,2]
[375151417,1753549843782,-460.0,0.00020984,2]
[375151418,1753549843791,-478.42,0.00020984,2]
[375151419,1753549843802,-460.0,0.00020984,2]
[375151420,1753549843811,-460.0,0.00020984,2]
[375151421,1753549843822,-477.02,0.00020984,2]
[375151422,1753549843832,-2850.0,0.00021,2]
[375151423,1753549843842,-284.90544308,0.0002104,2]
[375151424,1753549843851,-460.0,0.00021095,2]
[375151425,1753549843860,-360.0,0.00021107,2]
[375151426,1753549843870,-1339.07,0.00021153,2]
[375151427,1753549843879,-221.8448674,0.00021153,2]
[375151428,1753549843889,-469.67,0.00021153,2]
[375151429,1753549843899,-460.0,0.00021153,2]
[375151430,1753549843909,-460.0,0.00021153,2]
[375151431,1753549843920,-460.0,0.00021153,2]
[375151432,1753549843930,-176.2641175,0.00021203,2]
[375151433,1753549843942,-1000.0,0.00021217,2]
[375151434,1753549843953,-500.0,0.00021217,2]
[375151435,1753549843963,-460.0,0.00021258,2]
[375151436,1753549843974,-460.0,0.00021258,2]
[375151437,1753549843984,-1960.74,0.00021258,2]
[375151438,1753549843993,-460.0,0.00021258,2]
[375151439,1753549844003,-460.0,0.00021258,2]
[375151440,1753549844015,-2021.29,0.00021258,2]